bitfinex/quotes_ETHUSD_20250726
["timestamp","ask_amount","ask_price","bid_price","bid_amount"]
[1753491559062,2.68240343,3728.0,3727.8,0.4823]
[1753491559259,3.12269886,3728.3,3727.8,0.4823]
[1753491559260,2.68235779,3728.1,3727.8,0.4823]
[1753491559493,2.68235779,3728.1,3727.9,0.4823]
[1753491559791,2.68235779,3728.1,3728.0,0.4823]
[1753491560180,2.68235779,3728.1,3728.0,0.9518]
[1753491560387,2.68228203,3728.2,3728.0,0.9518]
[1753491560586,2.68228203,3728.2,3728.0,0.4695]
[1753491560787,2.68228203,3728.2,3728.1,0.4575]
[1753491561995,2.68233807,3728.1,3727.9,0.4575]
[1753491562293,2.68233807,3728.1,3727.8,0.4695]
[1753491562294,2.68240343,3728.0,3727.7,1.0075]
[1753491562604,2.68235283,3728.1,3727.9,0.55]
[1753491562787,2.68235283,3728.1,3727.8,0.927]
[1753491562788,2.68235283,3728.1,3727.8,0.4695]
[1753491563097,2.68235283,3728.1,3727.9,0.4575]
[1753491564191,2.68235283,3728.1,3727.7,0.55]
[1753491564493,0.9563,3728.4,3728.0,0.4575]
[1753491564494,2.68227571,3728.2,3728.0,0.4575]
[1753491564669,2.68221361,3728.3,3727.9,0.4695]
[1753491564868,2.68226147,3728.2,3728.0,0.4575]
[1753491565068,2.68226147,3728.2,3728.1,0.4575]
[1753491566998,2.68226147,3728.2,3727.9,0.927]
[1753491567168,2.68226147,3728.2,3728.0,0.4575]
[1753491567364,2.68220105,3728.3,3728.0,0.4575]
[1753491567569,2.68220105,3728.3,3728.1,0.4575]
[1753491567791,0.9563,3728.5,3728.1,0.4575]
[1753491568099,2.68216405,3728.4,3728.1,0.4575]
[1753491568598,2.68216405,3728.4,3727.9,0.55]
[1753491568797,2.68216405,3728.4,3728.1,0.4575]
[1753491569203,5.11806749,3728.5,3728.1,0.4575]
[1753491569496,5.58296749,3728.5,3728.1,0.4575]
[1753491569795,0.4649,3728.4,3728.1,0.4575]
[1753491569994,0.4649,3728.4,3727.9,0.55]
[1753491570196,0.4649,3728.4,3728.0,0.4575]
[1753491570590,0.4649,3728.4,3728.1,0.4575]
[1753491570794,3.14702792,3728.4,3728.1,0.4575]
[1753491571311,2.68218759,3728.3,3727.9,0.4575]
[1753491571469,3.14708759,3728.3,3727.9,0.4575]
[1753491571671,0.4649,3728.3,3728.0,0.4575]
[1753491572200,3.63827626,3728.4,3727.8,1.0195]
[1753491572378,5.11806515,3728.5,3728.1,0.4575]
[1753491572702,5.58296515,3728.5,3728.1,0.4575]
[1753491573073,5.58296515,3728.5,3728.2,0.4575]
[1753491574189,2.436,3728.7,3728.4,0.927]
[1753491574384,2.436,3728.7,3728.5,0.4575]
[1753491575195,2.436,3728.7,3728.3,0.55]
[1753491575504,5.11790346,3728.7,3728.4,0.4575]
[1753491575708,2.436,3728.7,3728.4,0.4575]
[1753491576477,2.436,3728.7,3728.3,0.55]
[1753491576799,2.436,3728.7,3728.5,0.4575]
[1753491579208,2.436,3728.7,3728.6,0.4575]
[1753491581208,5.11789985,3728.7,3728.6,0.4575]
[1753491581409,5.11789985,3728.7,3728.4,0.4575]
[1753491582010,5.58282464,3728.7,3728.4,0.4575]
[1753491583784,2.9009,3728.7,3728.4,0.4575]
[1753491583988,2.436,3728.7,3728.4,0.4575]
[1753491584199,2.436,3728.7,3728.5,0.4575]
[1753491584509,2.436,3728.7,3728.6,0.4575]
[1753491584906,5.11789985,3728.7,3728.6,0.4575]
[1753491585613,5.11789985,3728.7,3728.3,0.927]
[1753491585811,5.11789985,3728.7,3728.3,0.4575]
[1753491586114,5.58279985,3728.7,3728.4,0.4575]
[1753491586280,2.68198094,3728.6,3728.4,0.4575]
[1753491586809,5.5828246,3728.7,3728.4,0.4575]
[1753491587413,5.1179246,3728.7,3728.4,0.4575]
[1753491587609,5.1179246,3728.7,3728.1,1.0195]
[1753491587815,5.1179246,3728.7,3728.5,0.4575]
[1753491588010,5.1179246,3728.7,3728.2,0.4695]
[1753491588213,2.68198846,3728.6,3728.3,0.4575]
[1753491588411,2.68198846,3728.6,3728.1,0.55]
[1753491588617,2.68198846,3728.6,3728.4,0.4575]
[1753491590718,2.436,3728.7,3728.1,0.55]
[1753491590896,2.68213665,3728.4,3728.1,1.0083]
[1753491591092,2.68213665,3728.4,3728.1,0.55]
[1753491591292,2.68213665,3728.4,3728.2,0.4583]
[1753491591488,2.68206455,3728.5,3728.2,0.4583]
[1753491591690,2.68198622,3728.6,3728.3,0.4583]
[1753491592022,5.11792361,3728.7,3728.3,0.9325]
[1753491592188,5.11792361,3728.7,3728.1,0.55]
[1753491592189,2.436,3728.7,3728.4,0.9325]
[1753491592387,5.11790817,3728.7,3728.5,0.4583]
[1753491592611,2.68197693,3728.6,3728.4,0.4742]
[1753491592889,2.436,3728.7,3728.4,0.4742]
[1753491593088,5.11790443,3728.7,3728.4,0.4742]
[1753491593288,5.11790443,3728.7,3728.5,0.4583]
[1753491593496,5.11790443,3728.7,3728.4,0.4742]
[1753491593699,5.11790443,3728.7,3728.6,0.4583]
[1753491595818,5.11790443,3728.7,3728.4,0.4742]
[1753491596121,5.11790443,3728.7,3728.5,0.4583]
[1753491597923,2.68197178,3728.6,3728.5,0.4583]
[1753491598221,2.68197178,3728.6,3728.3,0.4583]
[1753491598429,5.11791722,3728.7,3728.3,0.9325]
[1753491598625,5.11791722,3728.7,3728.3,0.4742]
[1753491598926,5.11791722,3728.7,3728.4,0.4583]
[1753491599123,5.11791722,3728.7,3728.5,0.4583]
[1753491600127,2.436,3728.7,3728.6,0.4583]
[1753491600720,0.428,3729.1,3728.6,0.4583]
[1753491600920,0.428,3729.1,3728.7,1.0083]
[1753491601238,0.428,3729.1,3728.8,0.4583]
[1753491602037,0.428,3729.1,3728.7,0.55]
[1753491602333,0.428,3729.1,3728.9,0.4583]
[1753491603330,3.10964464,3729.1,3728.9,0.4583]
[1753491603547,3.10964464,3729.1,3728.6,0.16999]
[1753491603548,0.457,3729.0,3728.6,0.55]
[1753491603830,3.13877976,3728.9,3728.6,0.55]
[1753491604196,0.428,3728.8,3728.6,0.55]
[1753491604400,3.10983789,3728.8,3728.5,0.55]
[1753491604608,3.10983789,3728.8,3728.2,1.2977]
[1753491604609,2.68218759,3728.3,3728.2,0.4742]
[1753491604820,6.34518759,3728.3,3728.2,0.4742]
[1753491605621,2.68243695,3728.0,3727.5,0.4583]
[1753491605822,2.6826468,3727.7,3727.5,0.4583]
[1753491606023,3.11047751,3727.9,3727.4,0.55]
[1753491606223,2.68254734,3727.8,3727.4,0.55]
[1753491606426,2.68264983,3727.7,3727.4,0.55]
[1753491606619,2.68264983,3727.7,3727.4,0.4583]
[1753491606819,2.6827069,3727.6,3727.4,0.4583]
[1753491607435,2.68263895,3727.7,3727.4,0.4583]
[1753491607827,0.428,3727.7,3727.2,3.4473]
[1753491608032,2.68269127,3727.6,3727.2,3.4473]
[1753491608437,2.68269127,3727.6,3727.3,0.4583]
[1753491608947,3.11062622,3727.7,3727.3,0.4583]
[1753491609242,2.68249642,3727.9,3727.4,0.4583]
[1753491609541,2.68249642,3727.9,3727.5,0.4583]
[1753491609741,3.11049642,3727.9,3727.5,0.4583]
[1753491609945,2.68254748,3727.8,3727.5,0.4583]
[1753491610544,2.68262733,3727.7,3727.2,0.55]
[1753491610746,2.68262733,3727.7,3727.3,0.4583]
[1753491611749,3.11057013,3727.8,3727.4,0.4583]
[1753491611950,3.323,3728.0,3727.5,0.4583]
[1753491612250,2.68252521,3727.9,3727.6,0.4583]
[1753491613329,2.68252521,3727.9,3727.7,0.4583]
[1753491616960,2.68252521,3727.9,3727.8,0.4583]
[1753491617327,2.68252521,3727.9,3727.6,0.4583]
[1753491617728,2.68255769,3727.8,3727.6,0.4583]
[1753491617926,2.68261746,3727.8,3727.4,0.4583]
[1753491618132,2.68261746,3727.8,3727.5,0.4583]
[1753491619129,3.11049347,3727.9,3727.5,0.4583]
[1753491620264,2.68255889,3727.8,3727.5,0.4583]
[1753491620948,3.11049332,3727.9,3727.5,0.4583]
[1753491621159,3.11049332,3727.9,3727.6,0.4623]
[1753491621459,2.68255712,3727.8,3727.2,6.14416749]
[1753491621765,2.68255712,3727.8,3727.4,0.55]
[1753491622059,2.68255712,3727.8,3727.4,0.4623]
[1753491622263,2.68255712,3727.8,3727.5,0.4623]
[1753491622760,2.68255712,3727.8,3727.3,0.55]
[1753491622761,2.68249758,3727.9,3727.3,3.23289891]
[1753491622925,2.68249758,3727.9,3727.6,0.4623]
[1753491623770,3.13941414,3728.0,3727.6,0.4623]
[1753491623981,2.68256825,3727.8,3727.4,0.4623]
[1753491624474,2.68249479,3727.9,3727.5,0.9086]
[1753491624675,2.68249479,3727.9,3727.6,0.4623]
[1753491625230,3.62379698,3727.8,3727.3,0.4623]
[1753491625665,0.4543,3727.7,3727.4,0.4623]
[1753491626097,0.4543,3727.7,3727.2,3.8946]
[1753491626237,0.4543,3727.7,3727.3,0.4623]
[1753491626934,0.4543,3727.7,3727.4,0.55]
[1753491627175,0.4543,3727.7,3727.3,0.4623]
[1753491627176,0.4869,3727.7,3727.3,2.8983]
[1753491627470,3.1370449,3727.6,3727.3,0.4623]
[1753491627983,2.682785,3727.5,3727.3,0.4623]
[1753491628431,3.13705377,3727.6,3727.3,0.4623]
[1753491628626,2.68279114,3727.5,3727.3,0.4623]
[1753491628867,2.68310929,3727.1,3726.8,2.436]
[1753491629268,0.4543,3727.1,3726.8,2.8983]
[1753491629468,2.68299413,3727.2,3726.9,0.4623]
[1753491630039,2.68299413,3727.2,3727.0,0.4623]
[1753491630973,2.68306375,3727.1,3726.8,0.66236764]
[1753491631151,2.68306375,3727.1,3726.8,0.20006764]
[1753491631353,0.4869,3727.4,3726.9,0.4623]
[1753491631554,0.4869,3727.4,3727.0,0.4623]
[1753491631873,2.68301151,3727.2,3726.8,0.9086]
[1753491632038,3.62413112,3727.3,3726.8,0.4463]
[1753491632238,3.62413112,3727.3,3726.9,0.4623]
[1753491634094,3.13723112,3727.3,3726.9,0.4623]
[1753491634270,3.13723112,3727.3,3727.0,0.4623]
[1753491635793,3.13723112,3727.3,3726.8,0.6446082]
[1753491636090,3.62413112,3727.3,3726.9,0.4623]
[1753491636453,2.68300671,3727.2,3726.5,3.50426526]
[1753491636661,0.4543,3727.2,3726.6,3.39142653]
[1753491636879,0.4869,3727.1,3726.6,3.39142653]
[1753491637079,2.68321335,3726.9,3726.5,0.8208]
[1753491637279,2.68333914,3726.7,3726.0,2.436]
[1753491637593,0.9412,3726.6,3726.0,2.436]
[1753491637810,0.9412,3726.6,3725.9,1.0123]
[1753491637963,2.436,3726.8,3725.9,3.95097256]
[1753491638158,0.9412,3726.5,3726.0,2.68384326]
[1753491638392,0.9412,3726.4,3726.1,2.68374665]
[1753491638795,0.4543,3726.4,3726.1,2.68374665]
[1753491639000,0.4543,3726.6,3726.1,3.14604665]
[1753491639384,0.9412,3726.5,3726.1,0.4623]
[1753491639606,0.4543,3726.5,3726.2,2.68369921]
[1753491639912,1.3177,3726.7,3726.2,3.14599921]
[1753491640111,0.8308,3727.0,3726.4,0.55]
[1753491640316,2.437,3727.1,3726.5,2.68342552]
[1753491640481,2.437,3727.1,3726.5,3.14572552]
[1753491640820,1.772,3727.3,3726.6,0.8019]
[1753491641030,1.29255687,3727.2,3726.4,2.68350747]
[1753491641191,3.97557488,3727.2,3726.5,2.6834679]
[1753491641525,3.97557488,3727.2,3726.5,3.1457679]
[1753491641823,0.4543,3727.5,3726.7,1.3519]
[1753491641974,0.8308,3727.6,3726.7,1.3519]
[1753491642174,0.8308,3727.6,3726.9,2.68318962]
[1753491642389,0.8308,3727.6,3727.0,0.4623]
[1753491643911,3.51349526,3727.6,3727.0,0.4623]
[1753491644217,0.71372512,3727.5,3727.0,0.4623]
[1753491644715,1.65492512,3727.5,3726.8,3.12955342]
[1753491645013,1.65492512,3727.5,3727.1,0.4623]
[1753491648424,4.09292512,3727.5,3727.1,0.4623]
[1753491648718,6.77568902,3727.5,3727.1,0.4623]
[1753491648922,1.48321126,3727.4,3726.8,3.12955342]
[1753491649124,0.4543,3727.4,3726.9,0.4623]
[1753491649301,0.4543,3727.4,3726.8,3.12955342]
[1753491649624,0.4543,3727.4,3727.0,0.4623]
[1753491656055,3.13714263,3727.4,3727.0,0.4623]
[1753491656753,3.63614263,3727.4,3727.0,0.4623]
[1753491657747,3.13714263,3727.4,3726.8,0.4463]
[1753491657940,0.4543,3727.4,3727.1,0.4511]
[1753491659546,3.13714525,3727.4,3727.1,0.4511]
[1753491659846,4.09590975,3727.4,3727.1,0.4511]
[1753491660454,0.9587645,3727.4,3727.2,0.4511]
[1753491661247,0.9587645,3727.4,3727.1,0.4628]
[1753491661452,0.9587645,3727.4,3727.3,0.4511]
[1753491662954,0.9587645,3727.4,3727.1,0.4511]
[1753491663116,4.10022058,3727.4,3727.1,0.4511]
[1753491663954,2.68291742,3727.3,3727.1,0.4511]
[1753491664255,4.10020804,3727.4,3727.1,0.4511]
[1753491664978,2.68291997,3727.3,3726.9,0.4511]
[1753491665145,3.14145261,3727.4,3726.8,0.4628]
[1753491665343,2.68285261,3727.4,3726.9,0.4511]
[1753491665538,2.68285261,3727.4,3726.7,4.0352239]
[1753491665852,0.4586,3727.3,3726.7,0.8019]
[1753491666053,0.4586,3727.3,3726.1,4.9899]
[1753491666054,3.2283,3727.2,3726.1,4.9899]
[1753491666243,2.68335572,3726.7,3726.2,0.4511]
[1753491666440,2.68342821,3726.6,3726.2,0.4511]
[1753491666618,2.436,3726.8,3726.2,0.4511]
[1753491666619,2.68348529,3726.5,3726.2,0.9139]
[1753491666818,2.68343249,3726.6,3726.2,0.4628]
[1753491667027,0.4586,3726.5,3725.9,0.4511]
[1753491667249,2.68384326,3726.0,3725.9,0.4511]
[1753491667750,2.68392657,3725.9,3725.6,0.4628]
[1753491667955,0.7651,3726.1,3724.8,0.4628]
[1753491668157,2.68418872,3725.6,3725.2,0.8245]
[1753491668451,2.8946,3725.9,3725.3,0.9139]
[1753491668756,2.437,3726.0,3725.4,0.4511]
[1753491668961,2.437,3726.0,3725.4,0.9139]
[1753491669126,2.437,3726.0,3725.5,0.9139]
[1753491669321,2.437,3726.0,3724.8,0.8245]
[1753491669322,0.7651,3725.9,3724.8,0.8245]
[1753491669556,2.68426161,3725.5,3724.9,0.4511]
[1753491669756,2.68405937,3725.7,3724.9,0.9139]
[1753491670056,2.68427651,3725.4,3725.0,0.9139]
[1753491670352,2.68441962,3725.2,3724.8,0.8245]
[1753491670558,2.68441962,3725.2,3724.9,0.4511]
[1753491670863,2.68441962,3725.2,3724.4,0.4511]
[1753491670864,3.3976,3725.1,3724.4,0.4511]
[1753491671358,1.771,3725.0,3723.9,1.2873]
[1753491671659,2.68497545,3724.5,3724.0,0.4511]
[1753491671958,2.68485535,3724.6,3724.0,0.4511]
[1753491672164,2.68485535,3724.6,3724.1,0.4628]
[1753491672344,0.9576,3724.8,3724.1,0.4628]
[1753491672345,2.68479037,3724.7,3724.2,0.4511]
[1753491672662,2.68479037,3724.7,3724.1,0.4628]
[1753491672663,2.68485917,3724.6,3724.3,0.4511]
[1753491673470,2.68489767,3724.6,3724.3,0.4511]
[1753491674643,2.68493533,3724.5,3724.1,0.4628]
[1753491674840,2.68493533,3724.5,3724.2,0.4511]
[1753491675234,2.68480229,3724.7,3724.0,0.55]
[1753491675235,2.68502023,3724.4,3724.0,0.55]
[1753491675557,2.68480229,3724.7,3724.0,0.55]
[1753491675558,2.68493726,3724.5,3724.0,0.55]
[1753491676150,0.4586,3724.5,3724.1,0.4511]
[1753491676346,2.441,3724.7,3724.2,0.4511]
[1753491676555,2.441,3724.7,3724.3,0.4511]
[1753491676730,2.441,3724.7,3724.2,0.4628]
[1753491676931,2.441,3724.7,3724.3,0.4511]
[1753491677358,2.684857,3724.6,3724.3,0.4511]
[1753491677559,2.68494908,3724.5,3724.1,0.4511]
[1753491678264,2.68494908,3724.5,3724.2,0.4511]
[1753491678562,2.68487384,3724.6,3724.3,0.4511]
[1753491679166,2.68499624,3724.4,3724.3,0.4511]
[1753491679572,0.9576,3724.4,3723.9,0.8245]
[1753491679874,0.9576,3724.4,3723.8,0.4511]
[1753491679875,0.9576,3724.3,3723.7,0.65480523]
[1753491680034,3.64269082,3724.3,3723.7,0.4511]
[1753491680234,2.68530216,3724.0,3723.7,0.4511]
[1753491680549,2.68542886,3723.8,3723.7,1.0011]
[1753491680852,2.68534985,3724.0,3723.7,1.0011]
[1753491681055,2.68536231,3723.9,3723.7,1.0011]
[1753491681262,2.68529851,3724.0,3723.7,1.0011]
[1753491681454,2.68537743,3723.9,3723.8,0.4813]
[1753491681851,2.68537743,3723.9,3723.7,0.55]
[1753491682062,2.68542886,3723.8,3723.7,0.55]
[1753491682236,2.68542886,3723.8,3723.7,1.0313]
[1753491682432,2.68538098,3723.9,3723.7,1.0313]
[1753491682660,2.68538098,3723.9,3723.7,0.4813]
[1753491682969,2.68529917,3724.0,3723.7,0.4813]
[1753491683263,2.441,3724.3,3723.5,0.55]
[1753491683430,2.68542886,3723.8,3723.5,0.55]
[1753491683854,2.68542886,3723.8,3723.6,0.4813]
[1753491687288,2.68550098,3723.7,3723.6,0.4813]
[1753491687988,2.68544921,3723.8,3723.5,0.55]
[1753491688356,2.68544921,3723.8,3723.5,1.0313]
[1753491688557,2.68550098,3723.7,3723.5,1.0313]
[1753491688875,2.6855731,3723.6,3723.5,1.0313]
[1753491690083,2.68576424,3723.4,3723.1,0.7649]
[1753491690297,2.68576424,3723.4,3723.2,0.4813]
[1753491690763,2.68576424,3723.4,3723.1,0.96151856]
[1753491690960,2.6855904,3723.6,3723.1,0.19661856]
[1753491691160,3.6056904,3723.6,3722.9,3.4485]
[1753491691372,2.68578051,3723.4,3723.1,0.4813]
[1753491691755,2.68578051,3723.4,3723.0,0.55]
[1753491691955,2.68578051,3723.4,3723.1,0.4813]
[1753491692289,3.60568084,3723.6,3723.1,0.4813]
[1753491692490,2.68564522,3723.5,3723.0,0.4485]
[1753491692688,5.87967591,3723.8,3723.2,0.4813]
[1753491692888,2.68521253,3724.1,3723.3,1.7998]
[1753491693096,5.12729275,3724.0,3723.5,0.55]
[1753491693388,2.6854682,3723.8,3723.6,0.4813]
[1753491693688,2.6854682,3723.8,3723.7,0.4813]
[1753491694286,2.6854682,3723.8,3723.5,1.4798]
[1753491694488,2.442,3723.7,3723.2,0.55]
[1753491694693,6.04760098,3723.7,3723.2,0.55]
[1753491694861,3.6056731,3723.6,3723.0,1.2826]
[1753491695067,3.6056731,3723.6,3723.0,0.4813]
[1753491695585,2.6857944,3723.3,3723.0,0.4813]
[1753491695991,2.65733046,3723.3,3723.0,0.4813]
[1753491696303,2.68573169,3723.4,3723.0,0.4813]
[1753491696606,2.68566683,3723.5,3722.9,0.55]
[1753491696793,2.68566683,3723.5,3723.1,0.4813]
[1753491696994,2.68566683,3723.5,3723.2,0.4813]
[1753491698400,2.442,3723.7,3723.0,0.9985]
[1753491698601,2.68573411,3723.4,3723.0,0.9985]
[1753491698810,0.4677,3723.3,3723.0,0.55]
[1753491699514,3.13812643,3723.4,3723.0,1.0313]
[1753491699917,0.9201,3723.4,3722.9,0.19769884]
[1753491700079,3.15349735,3723.3,3722.9,0.4813]
[1753491700280,3.15349735,3723.3,3722.9,0.68464869]
[1753491700609,3.15356649,3723.2,3722.8,0.55]
[1753491700913,2.8954,3723.3,3722.5,3.96305402]
[1753491700914,0.9201,3723.1,3722.5,0.8282]
[1753491701119,2.68622172,3722.8,3722.4,0.4813]
[1753491701410,2.68622867,3722.7,3722.4,0.4813]
[1753491701975,5.13008189,3722.9,3722.4,0.4813]
[1753491702176,2.68641508,3722.5,3721.8,1.2754]
[1753491702531,3.51671819,3722.9,3721.9,0.4813]
[1753491702532,2.68648642,3722.4,3721.9,0.4813]
[1753491702817,2.68665289,3722.2,3721.8,0.99958496]
[1753491702979,2.68666587,3722.1,3721.8,1.48088496]
[1753491703180,2.68666587,3722.1,3721.8,0.99958496]
[1753491703493,2.68660189,3722.2,3721.8,1.2754]
[1753491703689,2.68660189,3722.2,3721.9,0.4813]
[1753491705017,2.68665929,3722.1,3721.9,0.4813]
[1753491705219,2.68677952,3722.0,3721.6,0.68783482]
[1753491705382,2.68677952,3722.0,3721.7,0.55]
[1753491705712,2.68667014,3722.1,3721.7,0.55]
[1753491706023,3.60670649,3722.2,3721.7,1.0313]
[1753491706335,2.445,3722.3,3721.8,0.9298]
[1753491706499,5.13152425,3722.3,3721.7,0.55]
[1753491706699,5.13152425,3722.3,3721.9,0.9298]
[1753491706901,2.445,3722.3,3721.9,0.4485]
[1753491707103,2.445,3722.3,3722.0,0.9298]
[1753491707332,2.68615346,3722.8,3722.1,0.9298]
[1753491707629,2.68634235,3722.6,3722.2,0.4813]
[1753491707816,2.68623998,3722.7,3722.2,0.4813]
[1753491708021,3.2046,3723.0,3721.8,0.7963]
[1753491708222,2.68634405,3722.6,3721.9,3.71809942]
[1753491708431,2.9137,3722.5,3721.9,1.0313]
[1753491708619,2.9137,3722.5,3722.1,0.55]
[1753491709029,2.446,3722.5,3722.1,0.4813]
[1753491709228,2.68644134,3722.4,3722.0,0.55]
[1753491709419,2.68663543,3722.2,3722.0,0.55]
[1753491709618,2.446,3722.1,3721.5,0.7963]
[1753491709942,2.68682535,3721.9,3721.5,0.7963]
[1753491710344,5.13265894,3722.1,3721.5,0.7963]
[1753491710345,2.68687697,3721.8,3721.5,1.2473]
[1753491710818,2.68681876,3721.9,3721.5,1.2473]
[1753491711208,2.68681876,3721.9,3721.6,0.451]
[1753491711408,2.68688962,3721.8,3721.6,0.451]
[1753491711844,2.68697502,3721.7,3721.5,0.7963]
[1753491712138,2.68697502,3721.7,3721.5,0.55]
[1753491713714,2.68697502,3721.7,3721.5,1.001]
[1753491713917,2.68688673,3721.8,3721.6,0.451]
[1753491714246,2.68688673,3721.8,3721.5,1.001]
[1753491715055,5.13280355,3721.9,3721.5,1.001]
[1753491715547,5.56230355,3721.9,3721.5,1.001]
[1753491715746,3.48033039,3721.6,3721.0,1.948]
[1753491715913,2.68721213,3721.4,3721.0,1.948]
[1753491716245,2.68721213,3721.4,3721.1,0.451]
[1753491716649,2.68737533,3721.2,3721.0,1.497]
[1753491716854,2.448,3721.1,3721.0,1.497]
[1753491717153,2.448,3721.1,3721.0,1.948]
[1753491717654,2.6871134,3721.5,3721.1,0.8295]
[1753491717837,3.48587343,3721.8,3721.1,0.8295]
[1753491718155,2.68716057,3721.5,3721.2,0.451]
[1753491718314,2.68717344,3721.4,3721.2,0.451]
[1753491718518,2.68717344,3721.4,3721.3,0.451]
[1753491718718,2.449,3721.4,3721.3,1.4473]
[1753491719013,2.68690448,3721.8,3721.3,1.4473]
[1753491719218,2.68710168,3721.5,3721.4,0.8973]
[1753491719742,2.68703327,3721.6,3721.4,0.8973]
[1753491719947,2.449,3721.5,3721.4,0.4463]
[1753491720324,2.68696583,3721.7,3721.4,0.4463]
[1753491720520,2.449,3721.7,3721.6,1.3795]
[1753491720726,2.68657039,3722.3,3721.7,0.55]
[1753491721038,2.449,3722.2,3721.7,0.55]
[1753491721244,2.68671289,3722.1,3721.7,1.001]
[1753491721448,5.13573394,3722.0,3721.4,0.55]
[1753491721654,2.68680668,3721.9,3721.6,0.55]
[1753491721828,2.68680668,3721.9,3721.4,0.55]
[1753491721829,2.68679975,3721.9,3721.4,0.55]
[1753491722028,2.6865832,3722.2,3721.4,1.84958451]
[1753491722228,2.6865832,3722.2,3721.6,0.55]
[1753491722229,2.449,3722.1,3721.6,0.55]
[1753491722665,2.68652787,3722.3,3721.7,0.8973]
[1753491722828,5.13558493,3722.2,3721.8,0.451]
[1753491723244,2.449,3722.1,3721.9,2.2328]
[1753491723567,3.11628093,3722.0,3721.7,0.55]
[1753491724062,2.68678093,3722.0,3721.7,0.55]
[1753491724232,2.68678093,3722.0,3721.7,1.001]
[1753491724766,2.6868086,3721.9,3721.7,0.55]
[1753491725546,2.68681801,3721.9,3721.7,0.55]
[1753491726466,3.14941801,3721.9,3721.3,0.8172]
[1753491726766,2.68698173,3721.7,3721.4,0.55]
[1753491727062,2.68698173,3721.7,3721.5,0.451]
[1753491727262,2.45,3721.8,3721.4,0.55]
[1753491727263,5.1369103,3721.8,3721.4,0.55]
[1753491727464,5.1369103,3721.8,3721.4,1.001]
[1753491727465,2.68708853,3721.5,3721.4,1.001]
[1753491727668,0.8921,3722.7,3721.8,0.55]
[1753491727971,0.7525,3722.8,3721.8,1.001]
[1753491727972,2.68664876,3722.2,3721.8,1.001]
[1753491728164,5.13764876,3722.2,3721.9,0.451]
[1753491729476,2.68666221,3722.1,3721.9,0.451]
[1753491729795,2.68672756,3722.0,3721.9,0.55]
[1753491729961,2.68668022,3722.1,3721.9,0.55]
[1753491730985,5.56709557,3722.2,3721.9,0.55]
[1753491731184,5.13759557,3722.2,3721.9,0.55]
[1753491731479,2.68672756,3722.0,3721.9,0.55]
[1753491731658,2.451,3722.2,3721.7,1.2682]
[1753491731659,2.8805,3722.2,3721.7,0.8172]
[1753491731868,2.68700081,3721.7,3721.5,0.55]
[1753491733058,2.68700081,3721.7,3721.4,0.55]
[1753491733290,3.11650081,3721.7,3721.4,0.55]
[1753491734187,2.68701898,3721.6,3721.4,0.55]
[1753491734488,2.68710004,3721.5,3721.2,0.55]
[1753491734849,2.68703666,3721.6,3721.3,0.451]
[1753491735253,2.68710699,3721.5,3721.3,0.451]
[1753491735490,2.68716074,3721.4,3721.3,0.55]
[1753491736655,2.68708771,3721.6,3721.3,0.55]
[1753491736859,2.68696021,3721.7,3721.3,1.001]
[1753491737165,2.68701641,3721.6,3721.4,0.451]
[1753491737757,2.68701641,3721.6,3721.3,0.55]
[1753491737958,2.68701641,3721.6,3721.3,1.001]
[1753491738666,2.68701641,3721.6,3721.3,0.55]
[1753491738873,2.6871097,3721.5,3721.3,1.001]
[1753491739078,2.68716074,3721.4,3721.3,0.55]
[1753491739271,2.68710768,3721.5,3721.4,0.451]
[1753491742559,5.13595107,3721.7,3721.4,0.451]
[1753491743063,5.13595107,3721.7,3721.5,0.4896]
[1753491743263,2.68701633,3721.6,3721.5,0.4896]
[1753491746565,2.68701633,3721.6,3721.3,1.0396]
[1753491746763,2.68701633,3721.6,3721.3,0.55]
[1753491747087,2.68701633,3721.6,3721.4,0.4896]
[1753491747287,2.68708853,3721.5,3721.4,0.4896]
[1753491747794,2.68716074,3721.4,3721.3,0.55]
[1753491748099,2.68716074,3721.4,3721.3,1.0396]
[1753491748998,2.449,3721.7,3721.3,1.0396]
[1753491749167,5.13595178,3721.7,3721.3,1.0396]
[1753491749363,1.2502,3721.6,3720.8,0.7581]
[1753491749600,3.3742,3721.5,3720.7,0.55]
[1753491749803,2.68750715,3721.0,3720.7,0.55]
[1753491750168,2.68754278,3720.9,3720.7,1.0396]
[1753491750395,2.68754278,3720.9,3720.7,1.23849608]
[1753491750578,2.68755763,3720.9,3720.7,1.23849608]
[1753491750979,2.6874671,3721.0,3720.7,1.23849608]
[1753491751178,2.68752813,3720.9,3720.7,1.23849608]
[1753491752406,2.68746811,3721.0,3720.7,1.23849608]
[1753491752614,2.68759406,3720.8,3720.7,0.55]
[1753491752904,3.61466811,3721.0,3720.6,0.55]
[1753491753493,2.68753897,3720.9,3720.6,1.0396]
[1753491753693,2.68761297,3720.8,3720.6,1.0396]
[1753491753897,2.6875293,3720.9,3720.6,1.0396]
[1753491754225,2.68761578,3720.8,3720.6,1.0396]
[1753491754401,0.9272,3721.0,3720.6,1.0396]
[1753491754582,5.13452183,3720.9,3720.6,1.0396]
[1753491755285,5.13452183,3720.9,3720.6,1.24506204]
[1753491755614,2.447,3720.9,3720.7,0.4896]
[1753491755808,2.447,3720.9,3720.6,1.19096204]
[1753491756004,2.447,3720.9,3720.8,1.0396]
[1753491756316,2.68728244,3721.3,3720.9,0.55]
[1753491756504,2.68728244,3721.3,3721.0,0.9251]
[1753491756818,2.446,3721.4,3721.1,0.9251]
[1753491756983,2.446,3721.3,3721.2,0.9251]
[1753491757183,2.68710042,3721.5,3721.2,0.9251]
[1753491757387,2.446,3721.4,3721.3,1.4751]
[1753491757788,2.446,3721.4,3721.3,1.0396]
[1753491758326,2.446,3721.4,3721.3,0.55]